bitfinex/quotes_SOLUSD_20230113
["timestamp","ask_amount","ask_price","bid_price","bid_amount"]
[1673627785584,343.5616,16.695,16.681,20.0]
[1673627786006,298.6316,16.695,16.681,20.0]
[1673627786212,179.9,16.693,16.681,20.0]
[1673627786549,20.0,16.692,16.681,20.0]
[1673627786762,20.0,16.692,16.678,20.0]
[1673627787077,179.9,16.69,16.678,20.0]
[1673627787678,179.9,16.69,16.675,20.0]
[1673627787906,20.0,16.692,16.675,20.0]
[1673627788108,179.9,16.693,16.675,20.0]
[1673627788323,179.9,16.691,16.675,20.0]
[1673627788645,44.94,16.692,16.675,20.0]
[1673627788840,183.6616,16.695,16.675,20.0]
[1673627789045,163.6616,16.695,16.675,20.0]
[1673627789260,163.6616,16.695,16.676,20.0]
[1673627789471,163.6616,16.695,16.677,137.5589]
[1673627789805,179.9,16.694,16.677,137.5589]
[1673627790019,163.6616,16.695,16.677,137.5589]
[1673627790544,118.7316,16.695,16.68,16.38]
[1673627790752,118.7316,16.695,16.681,20.0]
[1673627791478,118.7316,16.695,16.682,20.0]
[1673627791684,44.91,16.702,16.683,20.0]
[1673627791906,155.3172,16.702,16.683,20.0]
[1673627792547,179.9,16.701,16.683,20.0]
[1673627792861,20.0,16.7,16.681,20.0]
[1673627793081,179.9,16.699,16.681,20.0]
[1673627793572,179.9,16.697,16.681,20.0]
[1673627794020,224.83,16.697,16.681,20.0]
[1673627794228,179.9,16.697,16.681,20.0]
[1673627794632,179.9,16.698,16.681,20.0]
[1673627795165,44.93,16.697,16.681,20.0]
[1673627795379,44.92,16.698,16.681,20.0]
[1673627796313,20.0,16.696,16.681,20.0]
[1673627796853,179.9,16.694,16.681,20.0]
[1673627797275,179.9,16.692,16.678,20.0]
[1673627798229,224.84,16.692,16.678,20.0]
[1673627798418,179.9,16.693,16.678,20.0]
[1673627799991,44.93,16.694,16.678,20.0]
[1673627800421,153.4367,16.695,16.679,20.0]
[1673627800730,108.5067,16.695,16.68,20.0]
[1673627801789,108.5067,16.695,16.679,20.0]
[1673627802936,108.5067,16.695,16.68,16.38]
[1673627803150,108.5067,16.695,16.681,20.0]
[1673627807362,179.9,16.699,16.682,20.0]
[1673627807564,44.91,16.701,16.682,20.0]
[1673627807565,115.4304,16.701,16.683,20.0]
[1673627807785,44.92,16.7,16.683,20.0]
[1673627807990,160.3404,16.701,16.683,20.0]
[1673627808209,295.3304,16.701,16.683,20.0]
[1673627808408,44.92,16.7,16.683,20.0]
[1673627808826,179.9,16.699,16.683,20.0]
[1673627809259,179.9,16.699,16.682,20.0]
[1673627809465,44.92,16.7,16.682,20.0]
[1673627809895,44.92,16.7,16.683,29.8800799]
[1673627810102,115.4304,16.701,16.685,20.0]
[1673627810321,115.4304,16.701,16.686,136.0834]
[1673627810546,115.4304,16.701,16.687,20.0]
[1673627810716,336.7958,16.708,16.69,16.38]
[1673627810929,336.7958,16.708,16.691,20.0]
[1673627813254,44.89,16.71,16.691,20.0]
[1673627813464,20.0,16.711,16.691,20.0]
[1673627813870,44.89,16.71,16.691,20.0]
[1673627814177,20.0,16.709,16.691,20.0]
[1673627815230,1.04809827,16.706,16.691,20.0]
[1673627817333,20.0,16.705,16.691,20.0]
[1673627817754,20.0,16.705,16.688,20.0]
[1673627818621,180.94809827,16.706,16.688,20.0]
[1673627818839,180.94809827,16.706,16.689,44.95]
[1673627819152,1.04809827,16.706,16.69,20.0]
[1673627819363,1.04809827,16.706,16.688,44.95]
[1673627819582,1.04809827,16.706,16.69,16.3]
[1673627819890,1.04809827,16.706,16.691,20.0]
[1673627820507,179.9,16.705,16.691,20.0]
[1673627820718,20.0,16.704,16.688,20.0]
[1673627820934,179.9,16.705,16.688,20.0]
[1673627821764,200.94809827,16.706,16.688,20.0]
[1673627822190,1.04809827,16.706,16.688,20.0]
[1673627822725,1.04809827,16.706,16.69,16.38]
[1673627822938,1.04809827,16.706,16.691,20.0]
[1673627823885,1.04809827,16.706,16.689,20.0]
[1673627824197,1.04809827,16.706,16.688,20.0]
[1673627825575,179.9,16.705,16.688,20.0]
[1673627828490,16.38,16.7,16.688,20.0]
[1673627828712,16.38,16.7,16.68,16.32]
[1673627828905,179.9,16.698,16.68,16.32]
[1673627829111,179.9,16.698,16.678,155.8376]
[1673627829327,44.93,16.697,16.678,155.8376]
[1673627829877,44.93,16.697,16.679,20.0]
[1673627830085,110.3972,16.699,16.679,20.0]
[1673627830086,155.3172,16.699,16.68,16.38]
[1673627830401,155.3172,16.699,16.681,20.0]
[1673627830589,110.3972,16.699,16.681,20.0]
[1673627831553,44.9,16.705,16.69,16.34]
[1673627831743,45.94809827,16.706,16.69,16.34]
[1673627831960,1.04809827,16.706,16.69,16.34]
[1673627832377,1.04809827,16.706,16.691,20.0]
[1673627833326,1.04809827,16.706,16.692,44.94]
[1673627833540,1.04809827,16.706,16.693,20.0]
[1673627833749,1.04809827,16.706,16.694,20.0]
[1673627834062,1.04809827,16.706,16.694,64.93]
[1673627834270,1.04809827,16.706,16.695,20.0]
[1673627835325,1.04809827,16.706,16.694,20.0]
[1673627838888,1.04809827,16.706,16.693,20.0]
[1673627839121,1.04809827,16.706,16.691,20.0]
[1673627839860,21.04809827,16.706,16.689,20.0]
[1673627840059,21.04809827,16.706,16.688,20.0]
[1673627841840,1.04809827,16.706,16.688,20.0]
[1673627842271,1.04809827,16.706,16.689,44.95]
[1673627842475,1.04809827,16.706,16.69,20.0]
[1673627843208,1.04809827,16.706,16.691,44.94]
[1673627843414,1.04809827,16.706,16.692,20.0]
[1673627843639,1.04809827,16.706,16.688,64.95]
[1673627845021,180.94809827,16.706,16.688,64.95]
[1673627845626,180.94809827,16.706,16.689,20.0]
[1673627845937,1.04809827,16.706,16.689,20.0]
[1673627846148,1.04809827,16.706,16.691,20.0]
[1673627846372,1.04809827,16.706,16.691,40.0]
[1673627846591,1.04809827,16.706,16.692,64.94]
[1673627846781,1.04809827,16.706,16.693,20.0]
[1673627847330,1.04809827,16.706,16.694,44.93]
[1673627847643,1.04809827,16.706,16.695,20.0]
[1673627848375,1.04809827,16.706,16.694,20.0]
[1673627848586,1.04809827,16.706,16.692,20.0]
[1673627849112,1.04809827,16.706,16.693,44.94]
[1673627849432,1.04809827,16.706,16.694,20.0]
[1673627849826,1.04809827,16.706,16.695,44.93]
[1673627850040,1.04809827,16.706,16.696,20.0]
[1673627850266,1.04809827,16.706,16.692,20.0]
[1673627850459,1.04809827,16.706,16.693,44.94]
[1673627850671,1.04809827,16.706,16.695,20.0]
[1673627851108,1.04809827,16.706,16.696,44.93]
[1673627851320,1.04809827,16.706,16.697,20.0]
[1673627853727,109.0828,16.713,16.698,64.92]
[1673627853937,109.0828,16.713,16.699,20.0]
[1673627854474,109.0828,16.713,16.7,64.92]
[1673627854686,109.0828,16.713,16.701,20.0]
[1673627855000,288.9828,16.713,16.701,20.0]
[1673627855210,288.9828,16.713,16.695,115.1442]
[1673627855407,29.8800799,16.712,16.695,115.1442]
[1673627855628,49.8800799,16.712,16.696,44.93]
[1673627855951,288.9828,16.713,16.695,115.1442]
[1673627856581,288.9828,16.713,16.696,20.0]
[1673627856770,288.9828,16.713,16.695,115.1442]
[1673627857191,288.9828,16.713,16.696,20.0]
[1673627857420,288.9828,16.713,16.696,64.93]
[1673627857630,20.0,16.712,16.696,64.93]
[1673627857831,179.9,16.711,16.696,20.0]
[1673627859944,44.88,16.712,16.696,20.0]
[1673627860254,333.8628,16.713,16.696,20.0]
[1673627860445,288.9828,16.713,16.696,20.0]
[1673627861918,20.0,16.71,16.696,20.0]
[1673627862138,179.9,16.711,16.696,20.0]
[1673627862557,20.0,16.71,16.696,20.0]
[1673627862768,179.9,16.709,16.696,20.0]
[1673627864131,179.9,16.707,16.692,20.0]
[1673627864665,179.9,16.707,16.691,20.0]
[1673627864984,289.7243,16.707,16.691,64.94]
[1673627865309,289.7243,16.707,16.691,20.0]
[1673627865492,199.9,16.705,16.687,44.95]
[1673627865705,199.9,16.705,16.688,20.0]
[1673627865910,16.29,16.7,16.685,392.3]
[1673627866329,179.9,16.698,16.685,392.3]
[1673627866555,179.9,16.698,16.679,44.97]
[1673627866767,179.9,16.696,16.679,44.97]
[1673627867695,117.1814,16.697,16.681,20.0]
[1673627868034,117.1814,16.697,16.682,20.0]
[1673627868223,117.1814,16.697,16.682,64.97]
[1673627868637,179.9,16.696,16.682,64.97]
[1673627868847,179.9,16.696,16.682,20.0]
[1673627869081,117.1814,16.697,16.682,20.0]
[1673627869278,342.0114,16.697,16.68,20.0]
[1673627869604,297.0814,16.697,16.679,20.0]
[1673627870026,224.83,16.696,16.679,20.0]
[1673627870760,44.93,16.696,16.679,20.0]
[1673627870975,117.1814,16.697,16.679,20.0]
[1673627871500,117.1814,16.697,16.68,16.34]
[1673627871712,117.1814,16.697,16.681,20.0]
[1673627871902,117.1814,16.697,16.682,20.0]
[1673627874235,117.1814,16.697,16.681,40.0]
[1673627874542,117.1814,16.697,16.682,44.97]
[1673627874754,117.1814,16.697,16.681,40.0]
[1673627874755,117.1814,16.697,16.683,20.0]
[1673627875266,117.1814,16.697,16.682,40.0]
[1673627876118,44.91,16.702,16.682,40.0]
[1673627876436,158.914,16.702,16.682,40.0]
[1673627876623,114.004,16.702,16.682,40.0]
[1673627877044,29.8800799,16.707,16.683,44.96]
[1673627877265,158.904,16.706,16.685,20.0]
[1673627877472,158.904,16.706,16.686,133.8697]
[1673627877682,158.904,16.706,16.686,178.8197]
[1673627878137,179.9,16.705,16.686,178.8197]
[1673627878956,179.9,16.705,16.687,20.0]
[1673627879144,179.9,16.705,16.688,20.0]
[1673627879355,224.8,16.705,16.688,20.0]
[1673627880422,179.9,16.705,16.688,20.0]
[1673627880928,224.8,16.705,16.688,20.0]
[1673627881913,29.8800799,16.704,16.686,116.5022]
[1673627882335,16.38,16.7,16.68,1271.56]
[1673627882648,29.8800799,16.699,16.68,1271.56]
[1673627882861,179.9,16.698,16.68,1271.56]
[1673627883072,299.3992,16.698,16.68,1271.56]
[1673627883389,179.9,16.696,16.68,1271.56]
[1673627883917,209.7800799,16.696,16.68,1255.2]
[1673627884122,179.9,16.696,16.68,1255.2]
[1673627884333,224.83,16.695,16.68,1255.2]
[1673627884547,179.9,16.695,16.68,1255.2]
[1673627885055,179.9,16.695,16.681,20.0]
[1673627887062,44.93,16.696,16.681,20.0]
[1673627887384,119.4992,16.698,16.682,20.0]
[1673627887590,119.4992,16.698,16.683,20.0]
[1673627889469,299.3992,16.698,16.682,20.0]
[1673627889780,299.3992,16.698,16.681,20.0]
[1673627891564,224.83,16.697,16.681,20.0]
[1673627892104,44.93,16.697,16.681,20.0]
[1673627892318,119.4992,16.698,16.681,20.0]
[1673627892725,119.4992,16.698,16.682,20.0]
[1673627893378,119.4992,16.698,16.683,44.96]
[1673627893588,119.4992,16.698,16.684,40.0]
[1673627894741,179.9,16.703,16.684,40.0]
[1673627894942,179.9,16.703,16.685,44.96]
[1673627895270,179.9,16.705,16.686,20.0]
[1673627895581,161.3057,16.706,16.686,133.5169]
[1673627895770,116.4057,16.706,16.686,133.5169]
[1673627896316,116.4057,16.706,16.687,20.0]
[1673627896524,116.4057,16.706,16.688,20.0]
[1673627897027,116.4057,16.706,16.689,20.0]
[1673627897242,116.4057,16.706,16.69,20.0]
[1673627898609,116.4057,16.706,16.69,36.34]
[1673627899671,44.88,16.712,16.691,20.0]
[1673627899885,112.961,16.712,16.692,20.0]
[1673627900204,112.961,16.712,16.693,20.0]
[1673627900399,112.961,16.712,16.694,20.0]
[1673627900632,112.961,16.712,16.695,115.3067]
[1673627900828,112.961,16.712,16.696,20.0]
[1673627901255,112.961,16.712,16.697,20.0]
[1673627901443,112.961,16.712,16.698,20.0]
[1673627904386,112.961,16.712,16.697,20.0]
[1673627905347,292.861,16.712,16.697,20.0]
[1673627905868,244.79,16.711,16.696,20.0]
[1673627906074,199.9,16.711,16.696,20.0]
[1673627906701,179.9,16.709,16.695,115.3067]
[1673627906923,20.0,16.708,16.695,115.3067]
[1673627907124,44.9,16.708,16.695,115.3067]
[1673627907984,44.89,16.709,16.695,115.3067]
[1673627908203,16.38,16.71,16.695,115.3067]
[1673627908817,157.841,16.712,16.695,115.3067]
[1673627909028,157.841,16.712,16.696,20.0]
[1673627909029,44.89,16.71,16.696,20.0]
[1673627909256,64.89,16.711,16.696,20.0]
[1673627910100,44.89,16.711,16.696,20.0]
[1673627911256,224.79,16.711,16.696,20.0]
[1673627911464,29.8800799,16.71,16.696,20.0]
[1673627911878,44.89,16.709,16.696,20.0]
[1673627912078,44.89,16.71,16.696,20.0]
[1673627912494,44.89,16.711,16.696,20.0]
[1673627912706,157.841,16.712,16.696,20.0]
[1673627912915,112.961,16.712,16.696,20.0]
[1673627913357,157.841,16.712,16.696,20.0]
[1673627915144,112.961,16.712,16.696,20.0]
[1673627915758,157.841,16.712,16.696,20.0]
[1673627916711,112.961,16.712,16.696,20.0]
[1673627916949,112.961,16.712,16.697,20.0]
[1673627917122,112.961,16.712,16.698,20.0]
[1673627918719,44.87,16.717,16.698,20.0]
[1673627918915,44.87,16.717,16.698,129.7377]
[1673627919117,44.87,16.718,16.698,129.7377]
[1673627919327,44.87,16.716,16.698,129.7377]
[1673627919538,44.87,16.717,16.698,129.7377]
[1673627919753,179.9,16.717,16.698,129.7377]
[1673627919980,44.87,16.716,16.698,129.7377]
[1673627920167,44.87,16.717,16.698,129.7377]
[1673627920484,44.87,16.718,16.698,129.7377]
[1673627921342,224.77,16.718,16.698,129.7377]
[1673627923659,224.77,16.718,16.698,119.7377]
[1673627925445,224.77,16.718,16.7,16.26]
[1673627925446,44.87,16.718,16.7,16.26]
[1673627925663,114.7932,16.719,16.701,20.0]
[1673627925878,114.7932,16.719,16.702,20.0]
[1673627926092,114.7932,16.719,16.703,20.0]
[1673627927151,114.7932,16.719,16.704,20.0]
[1673627927346,114.7932,16.719,16.705,20.0]
[1673627928188,294.6932,16.719,16.703,20.0]
[1673627928402,294.6932,16.719,16.701,20.0]
[1673627928604,294.6932,16.719,16.699,20.0]
[1673627928813,244.77,16.718,16.699,20.0]
[1673627929143,224.77,16.718,16.699,20.0]
[1673627933771,20.0,16.717,16.699,20.0]
[1673627934168,44.87,16.716,16.699,20.0]
[1673627934622,224.77,16.716,16.699,20.0]
[1673627935023,179.9,16.716,16.699,20.0]
[1673627935252,114.7932,16.719,16.695,202.21628946]
[1673627935253,179.9,16.714,16.695,157.28628946]
[1673627935657,20.0,16.711,16.695,157.28628946]
[1673627935989,20.0,16.711,16.695,41.97958946]
[1673627936198,179.9,16.709,16.695,41.97958946]
[1673627936731,20.0,16.707,16.695,41.97958946]
[1673627937252,244.8,16.707,16.695,41.97958946]
[1673627937464,224.8,16.707,16.695,41.97958946]
[1673627937779,179.9,16.707,16.696,20.0]
[1673627938182,199.9,16.708,16.696,20.0]
[1673627938598,179.9,16.708,16.696,20.0]
[1673627939986,20.0,16.707,16.696,20.0]
[1673627940710,179.9,16.708,16.696,20.0]
[1673627941342,44.89,16.709,16.691,20.0]
[1673627941662,119.181,16.71,16.692,20.0]
[1673627941872,119.181,16.71,16.693,20.0]
[1673627943760,20.0,16.709,16.691,20.0]
[1673627944175,244.79,16.709,16.691,20.0]
[1673627944496,224.79,16.709,16.691,20.0]
[1673627944915,179.9,16.709,16.691,20.0]
[1673627945549,224.79,16.709,16.691,20.0]
[1673627945742,44.89,16.709,16.691,20.0]
[1673627946170,119.181,16.71,16.691,20.0]
[1673627947858,119.181,16.71,16.691,64.94]
[1673627948178,44.89,16.711,16.691,58.61754662]
[1673627948394,164.4143,16.716,16.693,20.0]
[1673627948602,179.9,16.715,16.693,40.0]
[1673627948812,224.78,16.715,16.694,64.93]
[1673627949019,224.78,16.715,16.694,20.0]
[1673627949338,20.0,16.714,16.694,20.0]
[1673627949648,16.38,16.71,16.69,16.27]
[1673627949866,117.9639,16.709,16.69,16.27]
[1673627950075,162.8539,16.709,16.69,16.27]
[1673627950709,117.9639,16.709,16.69,16.27]
[1673627951635,117.9639,16.709,16.691,40.0]
[1673627952680,359.8,16.711,16.691,40.0]
[1673627952908,359.8,16.711,16.691,84.94]
[1673627953861,359.8,16.712,16.691,64.94]
[1673627954382,359.8,16.71,16.691,20.0]
[1673627955327,359.8,16.71,16.692,20.0]
[1673627955539,359.8,16.711,16.693,20.0]
[1673627955940,404.69,16.711,16.693,20.0]
[1673627956276,359.8,16.711,16.693,20.0]
[1673627956469,359.8,16.713,16.693,20.0]
[1673627956679,359.8,16.711,16.693,20.0]
[1673627956890,359.8,16.709,16.693,20.0]
[1673627957109,359.8,16.709,16.692,20.0]
[1673627957434,359.8,16.709,16.691,20.0]
[1673627961223,359.8,16.709,16.691,64.94]
[1673627961439,359.8,16.714,16.692,20.0]
[1673627961657,359.8,16.714,16.7,16.38]
[1673627961855,359.8,16.714,16.701,20.0]
[1673627962506,359.8,16.717,16.701,20.0]
[1673627964935,539.7,16.717,16.701,20.0]
[1673627965116,359.8,16.715,16.701,20.0]
[1673627966189,359.8,16.716,16.701,20.0]
[1673627966379,44.87,16.719,16.702,20.0]
[1673627966595,113.0921,16.722,16.71,16.38]
[1673627966793,113.0921,16.722,16.711,20.0]
[1673627967220,161.6274,16.726,16.711,20.0]
[1673627967431,116.7774,16.726,16.711,20.0]
[1673627968062,476.5774,16.726,16.711,20.0]
[1673627968392,44.85,16.725,16.711,20.0]
[1673627968606,476.5774,16.726,16.711,20.0]
[1673627968917,44.85,16.724,16.711,20.0]
[1673627969236,44.85,16.725,16.711,20.0]
[1673627972381,116.7774,16.726,16.711,20.0]
[1673627975014,476.5774,16.726,16.711,20.0]
[1673627975232,20.0,16.724,16.711,20.0]
[1673627976364,44.86,16.723,16.711,20.0]
[1673627976574,359.8,16.722,16.711,20.0]
[1673627977849,359.8,16.723,16.711,20.0]
[1673627978375,539.7,16.723,16.711,20.0]
[1673627978574,539.7,16.721,16.704,108.9806]
[1673627978789,20.0,16.72,16.704,108.9806]
[1673627979007,539.7,16.719,16.704,108.9806]
[1673627979213,20.0,16.718,16.704,108.9806]
[1673627979426,359.8,16.717,16.704,108.9806]
[1673627979827,404.67,16.717,16.704,108.9806]
[1673627980698,404.67,16.717,16.705,20.0]
[1673627981095,359.8,16.717,16.704,108.9806]
[1673627981942,359.8,16.715,16.704,108.9806]
[1673627982158,20.0,16.714,16.695,1374.5001]
[1673627982693,20.0,16.714,16.696,20.0]
[1673627983427,359.8,16.712,16.695,119.3001]
[1673627984272,359.8,16.714,16.695,119.3001]
[1673627984672,404.68,16.714,16.696,20.0]
[1673627985005,20.0,16.713,16.696,20.0]
[1673627986262,539.7,16.714,16.696,20.0]
[1673627987938,359.8,16.712,16.696,20.0]
[1673627989102,359.8,16.715,16.696,20.0]
[1673627989304,359.8,16.713,16.697,20.0]
[1673627989514,359.8,16.713,16.698,20.0]
[1673627990471,359.8,16.716,16.698,20.0]
[1673627991735,359.8,16.714,16.697,20.0]
[1673627993415,359.8,16.716,16.697,20.0]
[1673627993617,539.7,16.716,16.697,20.0]
[1673627993830,359.8,16.714,16.697,20.0]
[1673627994792,559.7,16.717,16.697,20.0]
[1673627995195,359.8,16.715,16.697,20.0]
[1673627995405,539.7,16.715,16.697,20.0]
[1673627995617,539.7,16.713,16.697,20.0]
[1673627996154,359.8,16.711,16.696,20.0]
[1673627996554,359.8,16.711,16.695,119.3001]
[1673627996555,359.8,16.709,16.695,119.3001]
[1673627999310,359.8,16.709,16.696,20.0]
[1673628000884,359.8,16.712,16.7,16.26]
[1673628001069,359.8,16.712,16.701,20.0]
[1673628001705,559.7,16.717,16.701,20.0]
[1673628002346,359.8,16.715,16.701,20.0]
[1673628002542,539.7,16.715,16.701,20.0]
[1673628002755,359.8,16.713,16.701,20.0]
[1673628003175,404.68,16.713,16.701,20.0]
[1673628003933,359.8,16.715,16.701,20.0]
[1673628004356,359.8,16.713,16.701,20.0]
[1673628005603,359.8,16.714,16.701,20.0]
[1673628006753,359.8,16.712,16.701,20.0]
[1673628007819,359.8,16.714,16.701,20.0]
[1673628008009,20.0,16.713,16.701,20.0]
[1673628008219,359.8,16.712,16.697,20.0]
[1673628010345,359.8,16.714,16.697,20.0]
[1673628012212,539.7,16.714,16.697,20.0]
[1673628012428,359.8,16.712,16.697,20.0]
[1673628012638,224.78,16.713,16.697,20.0]
[1673628012951,20.0,16.712,16.697,20.0]
[1673628013580,44.88,16.713,16.697,20.0]
[1673628014001,44.88,16.715,16.697,20.0]
[1673628014337,44.88,16.712,16.697,20.0]
[1673628014544,44.88,16.715,16.697,20.0]
[1673628015485,224.78,16.715,16.697,20.0]
[1673628015808,20.0,16.714,16.697,20.0]
[1673628016432,224.78,16.713,16.697,20.0]
[1673628016856,20.0,16.712,16.695,119.3001]
[1673628017083,310.1851,16.712,16.695,119.3001]
[1673628017258,224.79,16.711,16.695,119.3001]
[1673628017678,20.0,16.71,16.695,119.3001]
[1673628018223,44.89,16.709,16.695,119.3001]
[1673628018434,20.0,16.708,16.695,119.3001]
[1673628019814,44.89,16.709,16.695,119.3001]
[1673628020014,64.89,16.71,16.696,20.0]
[1673628023788,130.2851,16.712,16.696,20.0]
[1673628023988,44.89,16.711,16.696,20.0]
[1673628024200,20.0,16.71,16.696,20.0]
[1673628025695,224.79,16.711,16.696,20.0]
[1673628026001,44.89,16.711,16.696,20.0]
[1673628026215,110.2851,16.712,16.696,20.0]
[1673628026409,290.1851,16.712,16.696,20.0]
[1673628026619,20.0,16.711,16.696,20.0]
[1673628028089,241.05,16.71,16.696,20.0]
[1673628028307,270.9300799,16.71,16.696,20.0]
[1673628028517,29.8800799,16.709,16.69,20.0]
[1673628028728,20.0,16.708,16.69,20.0]
[1673628028954,179.9,16.707,16.69,20.0]
[1673628029168,179.9,16.707,16.684,111.9104]
[1673628029476,179.9,16.705,16.684,111.9104]
[1673628029694,20.0,16.704,16.684,111.9104]
[1673628029891,179.9,16.703,16.684,111.9104]
[1673628030296,179.9,16.701,16.684,111.9104]
[1673628030717,44.92,16.7,16.684,111.9104]
[1673628031264,179.9,16.7,16.684,111.9104]
[1673628031659,20.0,16.699,16.684,111.9104]
[1673628031869,20.0,16.699,16.687,20.0]
[1673628032316,179.9,16.698,16.687,20.0]
[1673628032506,179.9,16.698,16.681,20.0]
[1673628032720,20.0,16.695,16.681,20.0]
[1673628033691,64.93,16.695,16.679,20.0]
[1673628035374,179.9,16.694,16.679,20.0]
[1673628036203,44.93,16.695,16.679,20.0]
[1673628036406,224.83,16.695,16.679,20.0]
[1673628037029,179.9,16.695,16.679,20.0]
[1673628037357,44.93,16.696,16.68,16.3]
[1673628037679,112.9603,16.697,16.681,20.0]
[1673628038515,179.9,16.696,16.681,20.0]
[1673628038730,179.9,16.696,16.68,20.0]
[1673628038918,179.9,16.696,16.679,20.0]
[1673628039130,20.0,16.695,16.679,20.0]
[1673628040189,224.83,16.696,16.679,20.0]
[1673628041236,44.93,16.696,16.679,20.0]
[1673628042506,112.9603,16.697,16.679,20.0]
[1673628043021,44.93,16.696,16.679,20.0]
[1673628043432,44.93,16.696,16.68,20.0]
[1673628044084,112.9603,16.697,16.68,20.0]
[1673628045767,112.9603,16.697,16.679,40.0]
[1673628045976,112.9603,16.697,16.68,20.0]
[1673628046189,112.9603,16.697,16.68,81.35]
[1673628046391,112.9603,16.697,16.681,20.0]
[1673628046920,44.92,16.7,16.681,20.0]
[1673628046921,44.91,16.701,16.681,20.0]
[1673628047164,338.5969,16.707,16.682,70.13629953]
[1673628047345,158.6969,16.707,16.69,16.3]
[1673628047560,113.7969,16.707,16.691,20.0]
[1673628048511,113.7969,16.707,16.692,20.0]
[1673628048716,113.7969,16.707,16.693,20.0]
[1673628052100,113.7969,16.707,16.692,20.0]
[1673628052713,113.7969,16.707,16.691,20.0]
[1673628053668,293.6969,16.707,16.691,20.0]
[1673628053878,224.8,16.706,16.691,20.0]
[1673628054633,20.0,16.705,16.691,20.0]
[1673628054819,224.8,16.706,16.687,20.0]
[1673628055030,44.91,16.704,16.687,20.0]
[1673628055247,224.8,16.705,16.687,20.0]
[1673628058942,20.0,16.704,16.686,109.998]
[1673628059578,179.9,16.702,16.686,109.998]
[1673628060203,179.9,16.7,16.686,109.998]
[1673628060515,44.91,16.701,16.686,109.998]
[1673628060703,44.91,16.703,16.687,20.0]
[1673628061125,44.9,16.705,16.687,20.0]
[1673628061440,44.91,16.702,16.687,20.0]
[1673628061647,44.91,16.704,16.687,20.0]
[1673628061989,224.8,16.705,16.687,20.0]
[1673628062178,44.91,16.703,16.687,20.0]